bitfinex-derivatives/quotes_ETHF0:USTF0_20250430
["timestamp","ask_amount","ask_price","bid_price","bid_amount"]
[1746017818933,4.94060735,1777.8,1777.7,9.9066]
[1746017819434,1.12489,1777.5,1777.4,3.2078]
[1746017819737,1.40543917,1777.4,1777.3,5.1631]
[1746017819933,1.40543917,1777.4,1777.3,6.28812]
[1746017820133,0.28048917,1777.7,1777.3,8.3709]
[1746017820337,0.28048917,1777.8,1777.3,11.18343]
[1746017820537,0.28048917,1777.8,1777.7,1.12476]
[1746017821143,1.40518917,1777.8,1777.7,1.12476]
[1746017821342,0.28048917,1777.8,1777.7,1.12476]
[1746017822943,0.28048917,1777.9,1777.8,1.1247]
[1746017823139,0.28048917,1778.0,1777.9,1.12464]
[1746017823337,1.40505917,1778.0,1777.9,6.20334]
[1746017823538,1.40505917,1778.0,1777.9,5.0787]
[1746017824146,4.10848917,1778.0,1777.9,5.0787]
[1746017824347,4.10848917,1778.0,1777.9,6.20334]
[1746017824543,4.10848917,1778.0,1777.9,5.0787]
[1746017824744,5.23305917,1778.0,1777.9,5.0787]
[1746017825043,4.10848917,1778.0,1777.6,3.2078]
[1746017825248,0.28048917,1777.5,1777.4,5.0787]
[1746017825544,0.28048917,1777.9,1777.7,1.12474]
[1746017825756,1.40517917,1777.9,1777.8,5.0787]
[1746017826159,5.23317917,1777.9,1777.8,5.0787]
[1746017828459,2.81241,1777.4,1777.1,3.2078]
[1746017828662,1.12508,1777.2,1777.1,4.7269]
[1746017828955,14.01686917,1777.8,1777.1,4.7269]
[1746017828956,4.10848917,1777.9,1777.8,1.1247]
[1746017829160,0.28048917,1778.0,1777.9,1.12464]
[1746017829557,3.81590735,1778.1,1778.0,1.12457]
[1746017829751,3.81590735,1778.1,1777.9,5.1395]
[1746017830058,5.60239062,1778.1,1778.0,1.12457]
[1746017832565,6.72690062,1778.1,1778.0,1.12457]
[1746017832766,1.40505917,1778.0,1777.9,5.1395]
[1746017833060,0.28048917,1778.0,1777.9,5.1395]
[1746017833265,0.28048917,1778.0,1777.9,6.26414]
[1746017834170,0.28048917,1778.3,1777.9,5.1395]
[1746017834660,1.40505917,1778.0,1777.9,5.1395]
[1746017835263,5.23305917,1778.0,1777.9,5.1395]
[1746017838865,4.10848917,1778.0,1777.9,6.26414]
[1746017839262,0.28048917,1778.0,1777.9,6.26414]
[1746017840058,3.89160474,1778.1,1778.0,1.12457]
[1746017840271,3.89160474,1778.1,1778.0,9.38247]
[1746017841062,5.01611474,1778.1,1778.0,5.0501]
[1746017841667,1.40499917,1778.1,1778.0,5.0501]
[1746017842261,3.48828917,1778.1,1777.8,9.5703]
[1746017842466,1.12476,1777.7,1777.6,5.67781]
[1746017842665,0.28048917,1777.9,1777.6,5.67781]
[1746017842875,1.12474,1777.8,1777.6,5.67781]
[1746017843170,5.23317917,1777.9,1777.7,1.12472]
[1746017843369,5.23317917,1777.9,1777.7,1.12476]
[1746017843570,0.28048917,1777.7,1777.5,3.2078]
[1746017843765,1.12494,1777.5,1777.4,4.788]
[1746017844273,4.95294,1777.5,1777.4,4.788]
[1746017844474,4.10848917,1777.5,1777.4,5.91295]
[1746017845171,0.28048917,1777.6,1777.5,1.12489]
[1746017845371,0.28048917,1778.1,1777.6,2.81202]
[1746017845677,0.28048917,1777.8,1777.7,5.0468]
[1746017845974,0.28048917,1777.9,1777.7,10.172]
[1746017846177,1.40513917,1777.9,1777.7,11.29671]
[1746017846372,1.40512917,1777.9,1777.7,10.172]
[1746017846669,1.40512917,1777.9,1777.7,11.29671]
[1746017846970,5.60239062,1777.9,1777.8,1.1247]
[1746017847975,6.72703062,1777.9,1777.8,1.1247]
[1746017848176,6.72703062,1777.9,1777.7,11.29671]
[1746017848371,1.40518917,1777.8,1777.7,10.172]
[1746017849177,0.28048917,1777.8,1777.7,11.29676]
[1746017850069,0.28048917,1777.8,1777.7,19.50456]
[1746017850777,0.28048917,1777.8,1777.7,11.29676]
[1746017851172,0.28048917,1777.8,1777.7,14.50456]
[1746017851579,0.28048917,1777.8,1777.7,19.50456]
[1746017851872,3.60845078,1778.0,1777.7,19.50456]
[1746017851873,3.60845078,1778.0,1777.9,1.12464]
[1746017852074,5.32190145,1778.2,1778.1,1.12451]
[1746017852380,5.32190145,1778.2,1778.1,4.33231]
[1746017852777,5.32190145,1778.2,1778.1,9.38011]
[1746017854371,1.12433,1778.4,1778.3,1.12438]
[1746017855078,1.12433,1778.4,1778.3,4.7946]
[1746017855478,1.12433,1778.4,1778.3,45.5946]
[1746017855679,1.12433,1778.4,1778.3,46.71898]
[1746017855980,1.12431,1778.5,1778.4,1.12431]
[1746017856168,4.95231,1778.5,1778.4,6.01261]
[1746017857083,3.828,1778.5,1778.4,6.01261]
[1746017857475,4.95226,1778.5,1778.4,6.01261]
[1746017858379,4.95226,1778.5,1778.4,4.8883]
[1746017858579,4.95226,1778.5,1778.4,6.01262]
[1746017858779,4.95226,1778.5,1778.4,4.8883]
[1746017860681,1.12445,1778.2,1778.1,49.0556]
[1746017860985,1.12445,1778.2,1778.1,54.1132]
[1746017861187,1.12445,1778.2,1778.1,13.3132]
[1746017863385,1.12445,1778.2,1778.1,8.2654]
[1746017863882,1.12445,1778.2,1778.1,5.0576]
[1746017864184,1.12457,1778.0,1777.9,50.7556]
[1746017864386,1.12457,1778.0,1777.9,9.9556]
[1746017864682,2.81144,1778.0,1777.7,3.2078]
[1746017864879,1.12476,1777.7,1777.6,5.0737]
[1746017865883,1.12467,1777.9,1777.7,1.12476]
[1746017866084,1.12467,1777.9,1777.8,5.2087]
[1746017867287,1.12467,1777.9,1777.8,6.3334]
[1746017867486,1.12464,1777.9,1777.8,5.2087]
[1746017868883,1.12464,1777.9,1777.8,6.3334]
[1746017869094,4.33228,1778.2,1778.0,1.12454]
[1746017869387,1.12451,1778.1,1777.9,10.4064]
[1746017869589,1.12451,1778.1,1777.9,11.53104]
[1746017869590,1.12456,1778.1,1777.9,11.53104]
[1746017869795,1.12457,1778.0,1777.9,10.4064]
[1746017870087,13.24631145,1778.3,1777.9,11.53102]
[1746017870292,1.12453,1778.1,1777.9,11.53102]
[1746017870690,13.24631145,1778.3,1777.9,10.4064]
[1746017870986,1.12457,1778.0,1777.9,10.4064]
[1746017871381,1.12457,1778.0,1777.9,11.53104]
[1746017872084,7.92442,1778.2,1777.9,11.53104]
[1746017872284,1.12451,1778.1,1778.0,5.2958]
[1746017872590,7.92442,1778.2,1777.7,8.2761]
[1746017872888,3.2078,1777.9,1777.1,4.529]
[1746017873083,1.12502,1777.3,1777.2,10.5788]
[1746017873680,1.12502,1777.3,1777.2,5.2958]
[1746017874187,11.208,1777.6,1777.2,5.2958]
[1746017874490,1.12502,1777.3,1777.2,5.2958]
[1746017875195,4.95302,1777.3,1777.2,5.2958]
[1746017875383,3.828,1777.3,1777.2,6.42088]
[1746017875684,4.95302,1777.3,1777.2,5.2958]
[1746017876291,1.12493,1777.5,1777.3,1.12502]
[1746017876592,1.12493,1777.5,1777.4,9.7934]
[1746017878899,8.13412145,1777.6,1776.9,51.76717]
[1746017879194,5.32190145,1777.6,1777.3,3.2078]
[1746017879494,1.12487,1777.6,1777.4,6.48804]
[1746017879692,1.12487,1777.6,1777.5,9.7679]
[1746017879991,1.12487,1777.6,1777.5,15.131]
[1746017880189,1.12478,1777.7,1777.5,16.25586]
[1746017880398,9.65435145,1777.9,1777.7,1.12473]
[1746017880593,3.04756083,1778.1,1777.8,9.6956]
[1746017880793,8.86983575,1778.3,1778.2,1.12445]
[1746017881096,0.89393575,1778.3,1778.2,50.09031338]
[1746017881497,0.89393575,1778.3,1778.2,49.63925]
[1746017881690,0.89393575,1778.3,1778.2,54.65615]
[1746017882093,0.89393575,1778.3,1778.2,58.48415]
[1746017882799,1.12431,1778.5,1778.4,1.12432]
[1746017884200,2.81033,1778.7,1778.3,5.0954]
[1746017884392,1.12429,1778.5,1778.4,5.1575]
[1746017884593,1.12424,1778.6,1778.5,1.12426]
[1746017884899,1.12426,1778.5,1778.4,6.28178]
[1746017885199,1.12422,1778.6,1778.5,1.12426]
[1746017886301,1.12422,1778.6,1778.4,1.12427]
[1746017886500,6.01781,1779.0,1778.5,3.2078]
[1746017886695,1.12415,1778.7,1778.5,1.12422]
[1746017887096,8.1167,1779.0,1778.3,11.11415]
[1746017887401,1.12402,1778.9,1778.7,1.1241]
[1746017887603,3.2078,1779.4,1778.8,3.2078]
[1746017887796,1.12383,1779.2,1778.8,6.01798]
[1746017887996,13.3146,1779.4,1779.1,1.12388]
[1746017888192,8.15951,1779.4,1779.0,6.01764]
[1746017888402,4.95171,1779.4,1779.2,1.12377]
[1746017889001,3.828,1779.4,1779.3,1.12375]
[1746017889200,5.62959,1779.6,1779.4,1.12365]
[1746017889404,1.12359,1779.6,1779.4,1.12365]
[1746017889791,13.8516029,1779.9,1779.4,3.2078]
[1746017890105,1.12352,1779.7,1779.5,1.12358]
[1746017890306,6.21158,1779.8,1779.4,4.505]
[1746017890602,1.12352,1779.7,1779.5,1.1236]
[1746017890791,7.89671,1779.8,1779.4,4.505]
[1746017890996,1.12363,1779.5,1779.4,4.505]
[1746017891393,6.21171,1779.6,1779.4,4.505]
[1746017891796,1.12363,1779.5,1779.4,4.505]
[1746017892099,1.12375,1779.3,1779.2,8.2906]
[1746017892407,1.12375,1779.3,1779.2,3.2078]
[1746017892610,1.1238,1779.3,1779.1,4.504]
[1746017892806,5.0881,1779.4,1779.1,5.62787]
[1746017892999,1.12376,1779.3,1779.1,5.62787]
[1746017893202,4.95176,1779.3,1779.1,4.504]
[1746017893696,1.12381,1779.2,1779.1,4.504]
[1746017894203,3.828,1779.3,1779.1,5.62785]
[1746017894204,1.12377,1779.3,1779.1,5.62785]
[1746017894510,1.12381,1779.2,1779.1,4.504]
[1746017895801,1.12386,1779.2,1779.0,4.33174]
[1746017896097,1.12385,1779.2,1779.0,4.33173]
[1746017896301,1.1238,1779.3,1779.1,1.12386]
[1746017896504,5.2515,1779.4,1779.0,3.2078]
[1746017896803,2.80907,1779.5,1779.1,1.12386]
[1746017897006,7.79197,1779.5,1779.0,3.2078]
[1746017897395,1.12383,1779.2,1779.0,4.33169]
[1746017897908,7.7923,1779.3,1778.9,5.0298]
[1746017898109,1.12394,1779.0,1778.9,5.0298]
[1746017899101,2.81002,1778.9,1778.5,73.919]
[1746017899314,1.12407,1778.8,1778.6,1.12418]
[1746017899495,5.0237,1778.9,1778.6,1.12418]
[1746017899809,1.12407,1778.8,1778.6,1.12418]
[1746017900201,12.68467,1779.1,1778.6,3.2078]
[1746017900404,1.12409,1778.8,1778.6,4.33195]
[1746017901109,1.12413,1778.7,1778.6,3.2078]
[1746017901308,1.12413,1778.7,1778.5,75.04322]
[1746017901509,7.8336,1779.0,1778.6,4.33196]
[1746017901708,1.12413,1778.7,1778.5,75.04321]
[1746017901909,1.12409,1778.8,1778.6,4.33195]
[1746017902210,1.12417,1778.7,1778.5,75.04321]
[1746017902410,1.12412,1778.8,1778.6,1.12419]
[1746017902612,1.12413,1778.7,1778.6,1.12419]
[1746017903005,1.12413,1778.7,1778.5,5.6272]
[1746017903205,1.12413,1778.7,1778.6,6.15479]
[1746017903405,1.12413,1778.7,1778.6,5.0306]
[1746017904414,1.12413,1778.7,1778.6,6.15479]
[1746017904909,1.12413,1778.7,1778.6,5.0306]
[1746017905506,1.12438,1778.3,1778.2,3.2078]
[1746017905914,1.12438,1778.3,1778.2,4.33225]
[1746017906103,1.12438,1778.3,1778.2,44.0078]
[1746017906703,1.12438,1778.3,1778.2,45.13225]
[1746017907110,2.8096,1779.2,1778.4,2.81068]
[1746017907305,1.12408,1778.8,1778.6,3.2078]
[1746017907509,1.12407,1778.8,1778.6,4.33195]
[1746017907714,1.12413,1778.7,1778.6,3.2078]
[1746017908715,1.12413,1778.7,1778.5,15.90843]
[1746017908906,1.12413,1778.7,1778.6,1.12419]
[1746017909310,1.12412,1778.8,1778.6,1.12419]
[1746017909611,5.1461,1778.9,1778.5,15.90843]
[1746017909815,1.12418,1778.7,1778.5,15.90843]
[1746017910323,1.12418,1778.7,1778.6,5.3802]
[1746017910919,1.12412,1778.8,1778.6,6.50437]
[1746017911114,1.12402,1778.9,1778.7,5.3802]
[1746017911418,1.12407,1778.8,1778.7,6.5043]
[1746017911617,1.12405,1778.9,1778.7,6.5043]
[1746017911921,1.12407,1778.8,1778.7,6.5043]
[1746017912413,8.3334,1779.0,1778.7,5.3802]
[1746017912620,1.12401,1778.9,1778.8,1.12405]
[1746017912816,1.12397,1779.0,1778.8,1.12405]
[1746017913019,1.124,1778.9,1778.6,3.2078]
[1746017913217,4.33166,1779.2,1779.0,1.12391]
[1746017913420,1.12386,1779.2,1779.1,1.12388]
[1746017914120,1.12386,1779.2,1779.0,6.43759]
[1746017915920,1.12388,1779.1,1779.0,6.43759]
[1746017916922,2.8094,1779.3,1779.0,6.43759]
[1746017917124,1.12384,1779.2,1779.1,1.12386]
[1746017917310,1.12378,1779.3,1779.1,1.12386]
[1746017917711,1.12381,1779.2,1779.1,1.12386]
[1746017917916,1.12381,1779.2,1779.0,6.4376]
[1746017918323,1.12381,1779.2,1779.1,1.12388]
[1746017918519,1.12381,1779.2,1779.0,6.43759]
[1746017918720,1.12381,1779.2,1779.1,1.12388]
[1746017919025,1.12381,1779.2,1779.0,6.43759]
[1746017919328,15.53621,1779.4,1779.0,6.43759]
[1746017919623,1.12387,1779.2,1779.0,6.43759]
[1746017920419,15.53621,1779.4,1779.0,5.3137]
[1746017920420,1.12388,1779.1,1779.0,5.3137]
[1746017921323,1.12394,1779.0,1778.9,9.488]
[1746017923423,1.12394,1779.0,1778.9,14.5609]
[1746017924423,1.12394,1779.0,1778.9,9.5539]
[1746017924624,1.12394,1779.0,1778.9,5.0729]
[1746017924824,1.12407,1778.8,1778.7,5.1277]
[1746017925223,1.12407,1778.8,1778.7,6.25183]
[1746017925426,3.828,1779.0,1778.8,1.12407]
[1746017925822,1.124,1778.9,1778.8,1.12407]
[1746017926324,11.37404,1779.3,1779.0,1.12394]
[1746017926624,1.12381,1779.2,1779.1,6.05538]
[1746017926826,1.12381,1779.2,1779.1,1.12388]
[1746017927726,1.12386,1779.2,1779.0,9.1512]
[1746017928025,1.12386,1779.2,1779.1,1.12388]
[1746017928428,1.12386,1779.2,1779.0,9.15119]
[1746017928926,7.60127,1779.4,1779.1,1.12388]
[1746017928927,1.12381,1779.3,1779.1,1.12388]
[1746017929130,1.12381,1779.2,1779.1,1.12388]
[1746017930126,1.1238,1779.3,1779.1,1.12388]
[1746017930330,1.12381,1779.2,1779.1,1.12382]
[1746017931031,1.12379,1779.3,1779.2,1.1238]
[1746017931224,2.80907,1779.5,1779.0,8.0273]
[1746017931419,1.12379,1779.3,1779.2,1.1238]
[1746017931625,4.9473,1779.6,1779.1,2.80957]
[1746017931820,1.1237,1779.4,1779.3,1.12372]
[1746017933329,7.75623,1779.6,1779.2,8.1361]
[1746017933528,1.12369,1779.4,1779.3,1.12371]
[1746017934732,1.12367,1779.5,1779.4,1.12368]
[1746017934920,1.12369,1779.4,1779.3,1.1237]
[1746017935633,1.12369,1779.4,1779.2,9.25986]
[1746017935824,1.12375,1779.3,1779.2,8.1361]
[1746017936021,1.12375,1779.3,1779.2,9.25986]
[1746017936222,1.12375,1779.3,1779.2,8.1361]
[1746017936421,1.12375,1779.3,1779.2,3.2078]
[1746017936633,1.12388,1779.1,1779.0,9.15124]
[1746017936934,1.12387,1779.2,1779.1,1.12387]
[1746017937129,1.12388,1779.1,1779.0,8.0273]
[1746017938235,1.12388,1779.1,1779.0,9.15124]
[1746017938428,1.12432,1778.4,1778.3,7.49529323]
[1746017938629,1.12445,1778.2,1778.1,11.16250325]
[1746017938831,4.33225,1778.2,1778.1,6.04323648]
[1746017939030,9.33225,1778.2,1778.1,4.89519648]
[1746017939237,13.36225,1778.2,1778.1,4.89519648]
[1746017940136,13.78079758,1778.2,1778.1,4.89519648]
[1746017940540,9.83109167,1778.2,1778.1,4.89519648]
[1746017940832,4.24650234,1778.2,1778.1,4.89519648]
[1746017941237,1.54295234,1778.2,1778.1,4.89519648]
[1746017941425,0.41850234,1778.2,1778.1,4.89519648]
[1746017941629,1.54295234,1778.2,1778.1,4.89519648]
[1746017941829,0.41850234,1778.2,1778.1,4.89519648]
[1746017942227,6.23453,1778.3,1778.0,1.12455]
[1746017942228,5.1101,1778.3,1778.0,1.12455]
[1746017942434,6.23454,1778.3,1778.0,1.12455]
[1746017942635,5.1101,1778.3,1778.0,1.12455]
[1746017942830,6.23452,1778.3,1778.0,1.12455]
[1746017943032,3.62585428,1778.2,1777.8,10.2354]
[1746017943226,4.33241,1778.0,1777.9,5.3088]
[1746017943433,4.33241,1778.0,1777.4,10.1859]
[1746017943434,1.12489,1777.5,1777.4,10.1859]
[1746017943741,1.12489,1777.5,1777.4,5.3088]
[1746017944043,1.12485,1777.6,1777.4,5.3088]
[1746017944236,14.70341,1777.7,1777.4,6.43372]
[1746017944437,14.70342,1777.7,1777.4,6.43372]
[1746017944637,1.12483,1777.6,1777.4,6.43372]
[1746017944936,1.12483,1777.6,1777.4,5.3088]
[1746017945138,14.70341,1777.7,1777.4,6.43374]
[1746017945340,1.12483,1777.6,1777.4,6.43374]
[1746017945743,1.12489,1777.5,1777.4,5.3088]
[1746017949147,4.33269,1777.5,1777.4,5.3088]
[1746017950244,3.2078,1777.5,1777.4,5.3088]
[1746017950444,1.12488,1777.6,1777.4,6.43375]
[1746017950648,3.2078,1777.5,1777.4,6.43375]
[1746017950835,1.12486,1777.6,1777.4,5.3088]
[1746017951037,1.12486,1777.6,1777.4,6.43373]
[1746017951237,4.33261,1777.7,1777.5,1.12488]
[1746017951540,4.33261,1777.7,1777.6,4.9604]
[1746017952041,3.2078,1777.7,1777.6,6.08523]
[1746017952254,1.12455,1778.1,1777.6,11.08523]
[1746017952540,3.2078,1777.9,1777.7,14.7775]
[1746017952745,1.1247,1777.8,1777.7,14.7775]
[1746017953747,1.1247,1777.8,1777.7,4.9604]
[1746017953948,6.0744,1777.8,1777.7,4.9604]
[1746017954447,1.1247,1777.8,1777.7,4.9604]
[1746017954645,4.33249,1777.9,1777.7,6.08516]
[1746017955650,1.1247,1777.8,1777.7,4.9604]
[1746017956955,3.2078,1777.9,1777.8,1.1247]
[1746017957253,3.2078,1777.9,1777.8,5.0824]
[1746017957254,4.33244,1777.9,1777.8,5.0824]
[1746017958152,2.81176,1777.8,1777.2,6.02038]
[1746017958343,10.48153,1777.9,1777.6,6.1297]
[1746017958643,1.1247,1777.8,1777.7,5.0049]
[1746017959149,1.1247,1777.8,1777.7,6.12964]
[1746017959550,1.1247,1777.8,1777.7,5.0049]
[1746017960447,6.0396,1777.8,1777.7,5.0049]
[1746017961344,1.12495,1777.4,1777.3,10.2639]
[1746017961546,1.12495,1777.4,1777.3,15.4]
[1746017962549,3.2078,1777.5,1777.3,15.4]
[1746017962748,4.33269,1777.5,1777.4,5.1361]
[1746017964348,1.12489,1777.5,1777.4,5.1361]
[1746017964548,4.33269,1777.5,1777.4,5.1361]
[1746017967556,3.2078,1777.5,1777.4,6.26105]
[1746017967756,3.2078,1777.5,1777.4,11.26105]
[1746017968356,3.2078,1777.5,1777.4,6.26105]
[1746017969351,4.33269,1777.5,1777.4,6.26105]
[1746017969557,4.33269,1777.5,1777.4,5.1361]
[1746017969754,4.33269,1777.5,1777.4,6.26105]
[1746017969953,1.12489,1777.5,1777.4,6.26105]
[1746017971450,1.54372523,1777.5,1777.4,5.1361]
[1746017971651,1.54371447,1777.5,1777.4,6.26105]
[1746017971852,1.12485,1777.6,1777.5,1.12485]
[1746017972156,4.75161736,1777.6,1777.5,6.32155]
[1746017972355,4.75161736,1777.6,1777.5,5.1967]
[1746017972753,4.75161736,1777.6,1777.5,6.32159]
[1746017972953,4.75161736,1777.6,1777.5,5.1967]
[1746017973458,4.75161736,1777.6,1777.5,6.32159]
[1746017973858,4.75191909,1777.6,1777.5,5.1967]
[1746017974158,4.7519195,1777.6,1777.5,5.1967]
[1746017974361,3.6270695,1777.6,1777.5,6.32159]
[1746017974952,3.6270695,1777.6,1776.4,3.2078]
[1746017974953,1.12552,1776.5,1776.4,3.2078]
[1746017975246,1.12552,1776.5,1776.4,5.1645]
[1746017975457,1.54418607,1776.5,1776.4,5.1645]
[1746017975659,1.54417315,1776.5,1776.4,5.1645]
[1746017975855,1.12552,1776.5,1776.4,5.1645]
[1746017976157,1.54418184,1776.5,1776.4,5.1645]
[1746017976763,1.12565,1776.3,1776.2,40.8]
[1746017977061,1.54431184,1776.3,1776.2,45.9645]
[1746017977261,1.12565,1776.3,1776.2,45.9645]
[1746017977759,1.54319808,1776.3,1776.2,45.9645]
[1746017977959,6.81599808,1776.3,1776.2,45.9645]
[1746017978460,6.3939388,1776.3,1776.2,45.9645]
[1746017978959,3.2078,1776.4,1776.2,45.9645]
[1746017979153,5.862,1776.5,1776.3,1.12565]
[1746017979349,3.2078,1776.6,1776.4,4.8916]
[1746017979655,3.2078,1776.6,1776.5,1.12552]
[1746017979854,3.2078,1776.6,1776.5,6.14862]
[1746017980057,4.33326,1776.6,1776.5,5.0231]
[1746017980260,3.2078,1776.6,1776.5,5.0231]
[1746017980559,3.2078,1776.6,1776.5,11.04022]
[1746017980765,1.12544,1776.7,1776.5,11.04022]
[1746017981062,4.33326,1776.6,1776.5,4.8916]
[1746017982057,5.2371,1776.7,1776.5,4.8916]
[1746017982058,1.12545,1776.7,1776.5,6.0171]
[1746017982451,1.12545,1776.7,1776.6,5.1737]
[1746017982657,1.54198786,1776.7,1776.6,5.1737]
[1746017982858,1.12545,1776.7,1776.6,5.1737]
[1746017984465,1.54183465,1776.7,1776.6,5.1737]
[1746017984767,6.47783465,1776.7,1776.6,5.1737]
[1746017984960,2.81366,1776.6,1775.9,3.2078]
[1746017985159,4.33348,1776.3,1776.1,1.12575]
[1746017985355,4.33348,1776.3,1776.2,5.1087]
[1746017985560,4.33348,1776.3,1776.2,45.9087]
[1746017986766,3.2078,1776.5,1776.4,1.12555]
[1746017987368,3.2078,1776.5,1776.4,5.94025]
[1746017988968,1.12546,1776.6,1776.5,1.12546]
[1746017991976,2.81352,1776.7,1776.4,4.8147]
[1746017992169,1.12551,1776.6,1776.5,1.12551]
[1746017992978,10.94264,1776.8,1776.4,5.94025]
[1746017992979,1.12552,1776.5,1776.4,5.94025]
[1746017993671,10.94268,1776.8,1776.5,1.12552]
[1746017993866,1.1254,1776.7,1776.6,5.0513]
[1746017995275,1.12559,1776.4,1776.3,10.3776]
[1746017995476,10.3495,1776.6,1776.4,1.12559]
[1746017995782,1.12552,1776.5,1776.4,6.17689]
[1746017995973,1.12552,1776.5,1776.4,5.0513]
[1746017996576,14.68282,1776.6,1776.4,5.0513]
[1746017996774,1.12552,1776.5,1776.4,5.0513]
[1746017997380,2.81397,1776.4,1775.9,1.12585]
[1746017997575,2.81397,1776.4,1776.0,1.12583]
[1746017997576,6.02193,1776.3,1776.0,1.12583]
[1746017997881,1.12571,1776.2,1776.1,45.9799]
[1746017998078,1.12571,1776.2,1776.1,40.8]
[1746017998384,1.1259,1775.9,1775.8,4.902]
[1746017998680,1.12589,1776.0,1775.8,6.02797]
[1746017998983,1.12584,1776.0,1775.9,40.8]
[1746018000283,11.48995,1776.4,1775.9,40.8]
[1746018000284,5.862,1776.6,1776.5,1.12552]
[1746018000477,3.2078,1776.7,1776.6,1.12546]
[1746018000678,2.81366,1776.6,1776.3,4.419]
[1746018000877,2.81366,1776.6,1776.1,8.2579]
[1746018000878,1.12571,1776.2,1776.1,5.0501]
[1746018001077,1.12597,1775.8,1775.7,7.6268]
[1746018001279,1.12598,1775.8,1775.7,1.12599]
[1746018001484,1.12598,1775.8,1775.7,40.8]
[1746018001978,2.81547,1775.5,1774.9,3.2078]
[1746018002176,5.41008586,1775.8,1775.0,10.2658]
[1746018002177,1.12641,1775.1,1775.0,10.2658]
[1746018002374,1.12641,1775.1,1775.0,51.0658]
[1746018003181,3.2078,1775.6,1775.0,56.0658]
[1746018003382,3.2078,1775.6,1775.2,3.2078]
[1746018003584,5.0221,1775.7,1775.3,1.12625]
[1746018003882,1.12628,1775.3,1775.2,4.419]
[1746018004079,1.12641,1775.1,1775.0,54.2736]
[1746018004481,1.12631,1775.3,1775.1,1.12638]
[1746018004678,1.12641,1775.1,1775.0,44.0078]
[1746018004982,1.12641,1775.1,1775.0,40.8]
[1746018005182,3.2078,1775.4,1775.1,1.12638]
[1746018005485,4.33408,1775.4,1775.1,6.21838]
[1746018005673,4.33408,1775.4,1775.2,1.12634]
[1746018006180,4.33402,1775.4,1775.2,1.12631]
[1746018006585,3.2078,1775.4,1775.3,1.12628]
[1746018006776,1.12613,1775.6,1775.4,1.12618]
[1746018007277,6.14816,1775.7,1775.5,1.12616]
[1746018007477,1.12606,1775.7,1775.2,7.71564]
[1746018007689,1.12601,1775.8,1775.6,1.12607]
[1746018007981,1.12608,1775.7,1775.5,1.12611]
[1746018008180,3.2078,1775.7,1775.2,6.0261]
[1746018008387,1.12641,1775.1,1775.0,40.8]
[1746018008582,1.12638,1775.2,1775.0,41.92644]
[1746018008782,8.0036,1775.5,1775.0,40.8]
[1746018009080,1.12622,1775.4,1775.2,1.12634]
[1746018009287,1.12625,1775.4,1775.2,1.12632]
[1746018009583,1.12626,1775.4,1775.2,1.12633]
[1746018009888,6.02336,1775.4,1775.0,41.92647]
[1746018010080,1.1263,1775.3,1775.0,40.8]
[1746018010378,3.2078,1775.4,1775.0,43.61617]
[1746018010583,14.1112,1775.6,1775.4,1.12619]
[1746018010780,9.0698,1775.6,1775.5,1.12616]
[1746018010979,3.2078,1775.6,1775.5,1.12616]
[1746018011182,3.2078,1775.9,1775.8,1.12591]
[1746018011384,3.2078,1775.9,1775.5,5.54716]
[1746018011385,4.33372,1775.9,1775.6,10.3084]
[1746018011582,3.2078,1775.9,1775.6,11.43447]
[1746018011781,1.12603,1775.7,1775.6,11.43447]
[1746018012085,1.12614,1775.6,1775.3,4.421]
[1746018012285,1.12608,1775.7,1775.5,1.12613]
[1746018012485,1.12609,1775.6,1775.5,1.12613]
[1746018013187,6.02292,1775.7,1775.4,5.2939]
[1746018013391,6.13726,1775.5,1775.4,5.2939]
[1746018013688,1.12628,1775.3,1775.0,45.221]
[1746018013990,1.12625,1775.4,1775.3,5.2939]
[1746018014692,1.12626,1775.4,1775.2,1.12633]
[1746018014893,1.12626,1775.4,1775.2,6.26393]
[1746018015087,1.12626,1775.4,1775.3,5.1376]
[1746018015582,6.20626,1775.4,1775.3,5.1376]
[1746018015787,2.81572,1775.3,1775.0,50.3768]
[1746018015988,4.33415,1775.2,1775.1,5.1376]
[1746018016192,4.33415,1775.2,1775.0,45.221]
[1746018016498,1.12647,1775.0,1774.9,5.1376]
[1746018016685,4.33427,1775.0,1774.9,5.1376]
[1746018017088,1.12671,1774.7,1774.2,7.90733]
[1746018017293,1.12671,1774.7,1774.5,5.1376]
[1746018017597,1.12671,1774.7,1774.5,45.9376]
[1746018017984,1.12671,1774.7,1774.5,47.06439]
[1746018018188,4.33453,1774.6,1774.5,5.1376]
[1746018018691,3.2078,1774.6,1774.2,4.421]
[1746018018889,1.12692,1774.3,1774.2,5.0203]
[1746018019094,3.2078,1774.6,1774.2,6.14727]
[1746018019295,1.12684,1774.5,1774.2,6.14727]
[1746018019595,1.12682,1774.5,1774.3,4.9329]
[1746018019784,1.12679,1774.5,1774.4,5.0203]
[1746018020590,1.12705,1774.1,1774.0,45.9793]
[1746018021592,3.2078,1774.3,1774.0,47.10641]
[1746018021794,3.2078,1774.3,1774.1,1.12705]
[1746018021795,4.33475,1774.3,1774.1,1.12705]
[1746018021996,4.33475,1774.3,1773.1,84.57623359]
[1746018021997,2.81746,1774.2,1773.6,4.422]
[1746018022194,1.12717,1773.9,1773.7,11.33877]
[1746018022394,1.12722,1773.9,1773.8,40.8]
[1746018022595,1.12722,1773.9,1773.8,5.0561]
[1746018023191,6.02512,1774.3,1773.8,13.2639]